[Event "3rd VIZAG GM-Open 2022"]
[Site "Visakapatnam"]
[Date "2022.06.14"]
[Round "7.14"]
[White "Nguyen, Van Huy"]
[Black "Velpula Sarayu"]
[Result "0-1"]
[ECO "A49"]
[WhiteElo "2405"]
[BlackElo "1845"]
[Annotator "RC"]
[PlyCount "136"]
[EventDate "2022.06.13"]
[EventType "swiss"]
[EventCountry "IND"]
[SourceTitle "playchess.com"]
[Source "ChessBase"]
[SourceQuality "1"]
[TimeControl "5400+30"]

1. Nf3 {[%emt 1:31:00]} Nf6 {[%emt 1:31:00]} 2. d4 {[%emt 0:00:30]} g6 {[%emt 0:00:30]} 3. g3 {[%emt 0:00:30]} Bg7 {[%emt 0:00:30]} 4. Bg2 {[%emt 0:00:30]} O-O {[%emt 0:00:30]} 5. O-O {[%emt 0:00:30]} d6 {[%emt 0:00:30]} 6. a4 {[%emt 0:00:30]} Nbd7 {[%emt 0:00:30]} 7. a5 {[%emt 0:00:30]} a6 {[%emt 0:00:30]} 8. c4 {[%emt 0:00:30]} c5 {[%emt 0:00:30]} 9. Nc3 {[%emt 0:00:30]} Rb8 {[%emt 0:00:30]} 10. h3 {[%emt 0:00:30]} b6 {[%emt 0:00:30]} 11. axb6 {[%emt 0:00:30]} Qxb6 {[%emt 0:00:30]} 12. Na4 {[%emt 0:00:30]} Qc7 {[%emt 0:00:30]} 13. d5 {[%emt 0:00:30]} Nb6 {[%emt 0:00:30]} 14. Nd2 {[%emt 0:00:30]} Nfd7 {[%emt 0:00:30]} 15. Qc2 {[%emt 0:00:30]} a5 {[%emt 0:00:30]} 16. Nc3 {[%emt 0:00:30]} Ba6 {[%emt 0:00:30]} 17. Ncb1 {[%emt 0:00:30]} Rb7 {[%emt 0:00:30]} 18. Re1 {[%emt 0:00:30]} Rbb8 {[%emt 0:00:30]} 19. Na3 {[%emt 0:00:30]} e6 {[%emt 0:00:30]} 20. dxe6 {[%emt 0:00:30]} fxe6 {[%emt 0:00:30]} 21. Ne4 {[%emt 0:00:30]} Ne5 {[%emt 0:00:30]} 22. Nb5 {[%emt 0:00:30]} Bxb5 {[%emt 0:00:30]} 23. cxb5 {[%emt 0:00:30]} Nd5 {[%emt 0:00:30]} 24. Qa4 {[%emt 0:00:30]} Nb6 {[%emt 0:00:30]} 25. Qc2 {[%emt 0:00:30]} Nd5 {[%emt 0:00:30]} 26. Rd1 {[%emt 0:00:30]} Nb4 {[%emt 0:00:30]} 27. Qa4 {[%emt 0:00:30]} Nc4 {[%emt 0:00:30]} 28. Qb3 {[%emt 0:00:30]} d5 {[%emt 0:00:30]} 29. Ng5 {[%emt 0:00:30]} Qe7 {[%emt 0:00:30]} 30. e4 {[%emt 0:00:30]} Bd4 {[%emt 0:00:30]} 31. Nf3 {[%emt 0:00:30]} Qf6 {[%emt 0:00:30]} 32. exd5 {[%emt 0:00:30]} exd5 {[%emt 0:00:30]} 33. Bf4 {[%emt 0:00:30]} Bxb2 {[%emt 0:00:30]} 34. Bxb8 {[%emt 0:00:30]} Bxa1 {[%emt 0:00:30]} 35. Ba7 {[%emt 0:00:30]} Qe7 {[%emt 0:00:30]} 36. b6 {[%emt 0:00:30]} Bf6 {[%emt 0:00:30]} 37. Rxd5 {[%emt 0:00:30]} Nxd5 {[%emt 0:00:30]} 38. Qxc4 {[%emt 0:00:30]} Rd8 {[%emt 0:00:30]} 39. Qb5 {[%emt 0:00:30]} Qd7 {[%emt 0:00:30]} 40. Qxc5 {[%emt 0:00:30]} a4 {[%emt 0:00:30]} 41. h4 {[%emt 0:00:30]} Rc8 {[%emt 0:00:30]} 42. Qa5 {[%emt 0:00:30]} Bc3 {[%emt 0:00:30]} 43. Ne5 {[%emt 0:00:30]} Bxa5 {[%emt 0:00:30]} 44. Nxd7 {[%emt 0:00:30]} Rc1+ {[%emt 0:00:30]} 45. Kh2 {[%emt 0:00:30]} Nxb6 {[%emt 0:00:30]} 46. Bxb6 {[%emt 0:00:30]} Bxb6 {[%emt 0:00:30]} 47. Nxb6 {[%emt 0:00:30]} a3 {[%emt 0:00:30]} 48. Bd5+ {[%emt 0:00:30]} Kg7 {[%emt 0:00:30]} 49. Kg2 {[%emt 0:00:30]} Rc5 {[%emt 0:00:30]} 50. Ba2 {[%emt 0:00:30]} Rc2 {[%emt 0:00:30]} 51. Bd5 {[%emt 0:00:30]} Rd2 {[%emt 0:00:30]} 52. Nc4 {[%emt 0:00:30]} Rxf2+ {[%emt 0:00:30]} 53. Kxf2 {[%emt 0:00:30]} a2 {[%emt 0:00:30]} 54. Bf3 {[%emt 0:00:30]} a1=Q {[%emt 0:00:30]} 55. Nd2 {[%emt 0:00:30]} Qd4+ {[%emt 0:00:30]} 56. Ke2 {[%emt 0:00:30]} Kf6 {[%emt 0:00:30]} 57. Ne4+ {[%emt 0:00:30]} Ke5 {[%emt 0:00:30]} 58. Kf1 {[%emt 0:00:30]} Qb2 {[%emt 0:00:30]} 59. Kg1 {[%emt 0:00:30]} Kd4 {[%emt 0:00:30]} 60. Bg2 {[%emt 0:00:30]} Ke3 {[%emt 0:00:30]} 61. Kh1 {[%emt 0:00:30]} h6 {[%emt 0:00:30]} 62. Kh2 {[%emt 0:00:30]} Qe5 {[%emt 0:00:30]} 63. Kh3 {[%emt 0:00:30]} Qe6+ {[%emt 0:00:30]} 64. Kh2 {[%emt 0:00:30]} Qe5 {[%emt 0:00:30]} 65. Kh3 {[%emt 0:00:30]} Qf5+ {[%emt 0:00:30]} 66. g4 {[%emt 0:00:30]} Qxe4 {[%emt 0:00:30]} 67. Bxe4 {[%emt 0:00:30]} Kxe4 {[%emt 0:00:30]} 68. Kg3 {[%emt 0:00:30]} Ke5 {[%emt 0:00:30]} 0-1

[Event "3rd VIZAG GM-Open 2022"]
[Site "Visakapatnam"]
[Date "2022.06.14"]
[Round "7.15"]
[White "Praloy Sahoo"]
[Black "Abdurakhmonov, Mukhammadali"]
[Result "0-1"]
[ECO "B51"]
[WhiteElo "2065"]
[BlackElo "2308"]
[Annotator "RC"]
[PlyCount "80"]
[EventDate "2022.06.13"]
[EventType "swiss"]
[EventCountry "IND"]
[SourceTitle "playchess.com"]
[Source "ChessBase"]
[SourceQuality "1"]
[TimeControl "5400+30"]

1. e4 {[%emt 1:31:00]} c5 {[%emt 1:31:00]} 2. Nf3 {[%emt 0:00:30]} d6 {[%emt 0:00:30]} 3. Bb5+ {[%emt 0:00:30]} Nd7 {[%emt 0:00:30]} 4. O-O {[%emt 0:00:30]} Ngf6 {[%emt 0:00:30]} 5. Re1 {[%emt 0:00:30]} e6 {[%emt 0:00:30]} 6. c3 {[%emt 0:00:30]} a6 {[%emt 0:00:30]} 7. Bd3 {[%emt 0:00:30]} b5 {[%emt 0:00:30]} 8. c4 {[%emt 0:00:30]} bxc4 {[%emt 0:00:30]} 9. Bxc4 {[%emt 0:00:30]} Bb7 {[%emt 0:00:30]} 10. Nc3 {[%emt 0:00:30]} Be7 {[%emt 0:00:30]} 11. Bb3 {[%emt 0:00:30]} O-O {[%emt 0:00:30]} 12. d3 {[%emt 0:00:30]} Rc8 {[%emt 0:00:30]} 13. Bg5 {[%emt 0:00:30]} h6 {[%emt 0:00:30]} 14. Bf4 {[%emt 0:00:30]} Nb6 {[%emt 0:00:30]} 15. h3 {[%emt 0:00:30]} d5 {[%emt 0:00:30]} 16. e5 {[%emt 0:00:30]} Nfd7 {[%emt 0:00:30]} 17. Bc2 {[%emt 0:00:30]} Re8 {[%emt 0:00:30]} 18. Bg3 {[%emt 0:00:30]} Nb8 {[%emt 0:00:30]} 19. h4 {[%emt 0:00:30]} Nc6 {[%emt 0:00:30]} 20. a3 {[%emt 0:00:30]} a5 {[%emt 0:00:30]} 21. h5 {[%emt 0:00:30]} Ba6 {[%emt 0:00:30]} 22. Kh1 {[%emt 0:00:30]} Qc7 {[%emt 0:00:30]} 23. Ne2 {[%emt 0:00:30]} Nd7 {[%emt 0:00:30]} 24. Bh2 {[%emt 0:00:30]} Rb8 {[%emt 0:00:30]} 25. Qc1 {[%emt 0:00:30]} Rb6 {[%emt 0:00:30]} 26. Rb1 {[%emt 0:00:30]} Reb8 {[%emt 0:00:30]} 27. Bf4 {[%emt 0:00:30]} Bf8 {[%emt 0:00:30]} 28. Kh2 {[%emt 0:00:30]} Kh8 {[%emt 0:00:30]} 29. Kh3 {[%emt 0:00:30]} Qb7 {[%emt 0:00:30]} 30. b3 {[%emt 0:00:30]} a4 {[%emt 0:00:30]} 31. bxa4 {[%emt 0:00:30]} Rxb1 {[%emt 0:00:30]} 32. Bxb1 {[%emt 0:00:30]} Qb2 {[%emt 0:00:30]} 33. Nc3 {[%emt 0:00:30]} Rb3 {[%emt 0:00:30]} 34. Nb5 {[%emt 0:00:30]} Qxc1 {[%emt 0:00:30]} 35. Rxc1 {[%emt 0:00:30]} Nb6 {[%emt 0:00:30]} 36. Bc2 {[%emt 0:00:30]} Rb2 {[%emt 0:00:30]} 37. Nc7 {[%emt 0:00:30]} Bc8 {[%emt 0:00:30]} 38. Bd2 {[%emt 0:00:30]} d4 {[%emt 0:00:30]} 39. a5 {[%emt 0:00:30]} Nd5 {[%emt 0:00:30]} 40. a6 {[%emt 0:00:30]} Nxc7 {[%emt 0:00:30]} 0-1

[Event "3rd VIZAG GM-Open 2022"]
[Site "Visakapatnam"]
[Date "2022.06.14"]
[Round "7.16"]
[White "Aaryan Varshney"]
[Black "Setumadhav Yellumahanthi"]
[Result "1-0"]
[ECO "D02"]
[WhiteElo "2308"]
[BlackElo "1801"]
[Annotator "TA"]
[PlyCount "145"]
[EventDate "2022.06.13"]
[EventType "swiss"]
[EventCountry "IND"]
[SourceTitle "playchess.com"]
[Source "ChessBase"]
[SourceQuality "1"]
[TimeControl "5400+30"]

{[%evp 9,145,33,48,17,14,13,18,12,13,10,9,7,10,10,16,27,44,56,54,43,41,45,58,57,55,62,62,30,20,35,24,27,57,58,59,44,71,69,79,83,72,73,85,28,33,29,48,25,22,24,33,39,41,32,27,22,20,20,20,20,45,21,31,8,31,30,42,10,12,10,42,42,106,4,10,0,0,0,0,0,0,0,0,0,0,0,145,117,117,117,117,117,366,348,348,191,197,197,185,172,172,164,425,107,108,107,107,107,209,190,991,991,580,157,986,927,924,924,12783,12745,9856,1193,12795,12816,11904,1372,29962,29969,29963,29962,29990,29991,29991,29992,29992,29993,29996,29997]} 1. Nf3 {[%emt 0:00:04]} d5 {[%emt 0:00:49]} 2. g3 {[%emt 0:00:07]} Nd7 {[%emt 0:00:16]} 3. d4 {[%emt 0:00:42]} Nb6 {[%emt 0:00:19]} 4. Bg2 {[%emt 0:00:27]} Bf5 {[%emt 0:00:42]} 5. O-O {[%emt 0:00:48]} e6 {[%emt 0:02:22]} 6. Nbd2 {[%emt 0:03:33] D02: 1 d4 d5 2 Nf3 sidelines, including 2...Nf6 3 g3 and 2...Nf6 3 Bf4.} Be7 {[%emt 0:03:04]} 7. c4 {[%emt 0:04:15]} c6 {[%emt 0:01:04]} 8. b3 {[%emt 0:02:44] The position is equal.} h6 {[%emt 0:02:25]} 9. Bb2 {[%emt 0:01:20]} Nf6 {[%emt 0:00:51]} 10. Ne5 {[%emt 0:01:52]} O-O {[%emt 0:06:52]} 11. Re1 {[%emt 0:01:30] [#]} Bh7 $146 {[%emt 0:03:33]} ({Predecessor:} 11... a5 12. a3 Nbd7 13. e4 dxe4 14. Nxe4 Re8 15. Nxf6+ Bxf6 16. Qe2 Bxe5 17. dxe5 Nc5 {0-1 (38) Nagy,G (2495)-Le,T (2514) Chess.com INT 2020}) 12. e4 {[%emt 0:03:35]} Bb4 {[%emt 0:04:11]} 13. exd5 {[%emt 0:05:23]} exd5 {[%emt 0:06:15]} 14. a3 {[%emt 0:02:17]} Bxd2 {[%emt 0:08:02]} 15. Qxd2 {[%emt 0:00:12]} Nbd7 {[%emt 0:04:57]} 16. Qb4 {[%emt 0:02:48]} Rb8 {[%emt 0:09:09]} 17. Bh3 {[%emt 0:10:50]} a5 {[%emt 0:08:00]} 18. Qd6 {[%emt 0:13:21][%cal Re5d7] 0x0.000860f90760dp-1022s more active pieces. The black rooks are badly placed.} Nxe5 {[%emt 0:04:29]} 19. dxe5 {[%emt 0:00:34]} (19. Qxe5 Re8 20. Qf4 Qb6 21. cxd5 Qxb3 $17) 19... Ne4 {[%emt 0:02:28]} 20. Qxd8 {[%emt 0:00:25]} Rbxd8 {[%emt 0:02:52]} 21. cxd5 {[%emt 0:02:08]} cxd5 {[%emt 0:01:09]} 22. Rad1 {[%emt 0:42:35] Prevents Nd2.} Nc5 {[%emt 0:10:27]} 23. Bd4 {[%emt 0:00:00]} Ne6 {[%emt 0:03:15]} 24. Bb6 {[%emt 0:00:00][%csl LRa5,LRd8]} Rd7 {[%emt 0:03:37]} 25. Rd2 {[%emt 0:00:00]} Ra8 {[%emt 0:02:04]} 26. Red1 {[%emt 0:00:00]} (26. f4 $16) 26... Ra6 {[%emt 0:01:12]} 27. Be3 {[%emt 0:00:00]} Be4 {[%emt 0:01:47]} 28. Bf1 {[%emt 0:00:00]} (28. Bg2 $5 {[%cal Rg2e4]} Rc7 29. b4 $14) 28... Ra8 {[%emt 0:00:12]} 29. Bg2 {[%emt 0:00:00] Black must now prevent Bxe4.} Bxg2 {[%emt 0:02:48]} 30. Kxg2 {[%emt 0:00:00]} a4 {[%emt 0:00:02]} 31. bxa4 {[%emt 0:00:00]} (31. b4 {keeps more tension.} Nc7 32. Bc5 Ra6 33. f4) 31... Rxa4 {[%emt 0:00:49]} 32. Rxd5 {[%emt 0:00:00]} Rxd5 {[%emt 0:00:15]} 33. Rxd5 {[%emt 0:00:00]} Rxa3 $14 {[%emt 0:00:01][%mdl 4096] Endgame KRB-KRN} 34. Rb5 {[%emt 0:00:00]} Nd8 {[%emt 0:01:20]} 35. Bb6 {[%emt 0:00:00]} Ne6 {[%emt 0:01:34]} 36. f4 {[%emt 0:00:00]} g6 {[%emt 0:03:02]} 37. Bf2 {[%emt 0:01:12]} Nd8 {[%emt 0:01:05]} 38. Bc5 {[%emt 0:01:21]} Ra2+ {[%emt 0:01:05]} 39. Kh3 {[%emt 0:00:19]} h5 {[%emt 0:00:58]} 40. Be7 {[%emt 0:00:21]} Rd2 {[%emt 0:00:30]} (40... Ne6 $14) 41. Ra5 {[%emt 0:01:01]} (41. Bf6 $16) 41... Ne6 $11 {[%emt 0:00:21]} (41... Nc6 42. Ra8+ Kh7 43. Bf6 $18) 42. Ra8+ {[%emt 0:00:27]} Kh7 {[%emt 0:00:04]} 43. Bf6 {[%emt 0:01:09][%csl Gf6][%cal Ra8h8]} g5 $1 {[%emt 0:00:38]} 44. Bxg5 {[%emt 0:03:08]} Nxg5+ {[%emt 0:00:29]} 45. fxg5 {[%emt 0:00:01] KR-KR} Kg6 {[%emt 0:00:00]} 46. Rg8+ {[%emt 0:01:18]} Kh7 {[%emt 0:00:46]} 47. Rb8 {[%emt 0:00:09]} Rd7 {[%emt 0:00:32]} (47... Rb2 $11) 48. e6 {[%emt 0:02:00]} fxe6 {[%emt 0:00:42]} 49. Kh4 {[%emt 0:00:07]} Kg6 {[%emt 0:00:48]} 50. Rg8+ {[%emt 0:00:06]} Rg7 $2 {[%emt 0:00:36]} (50... Kf7 $16 51. Rh8 Kg7) 51. Re8 {[%emt 0:01:08]} (51. Rxg7+ $2 Kxg7 52. Kxh5 b5 $19) 51... Kf7 {[%emt 0:00:24]} 52. Rh8 {[%emt 0:00:26]} (52. Rb8 $142 Kg6 53. Re8 (53. Rf8 Rf7 $16)) 52... Rg8 $18 {[%emt 0:00:45]} (52... Kg6 $2 53. Rh6+ (53. Rxh5 Re7 $18) 53... Kf7 54. Rf6+ (54. Rxh5 b5 $16) 54... Kg8 55. Rxe6 $18) 53. Rh7+ {[%emt 0:00:32]} ({Don't do} 53. Rxh5 $6 b5 $16) (53. Rxg8 Kxg8 54. h3 b5 55. Kxh5 b4 56. Kg6 b3 57. Kh5 b2 58. Kg4 b1=Q 59. Kf4 Qf5+ 60. Ke3 Qxh3 61. Kf3 Qf5+ 62. Ke3 e5 63. g4 Qf4+ 64. Kd3 Qd4+ 65. Ke2 e4 66. g6 Qd3+ 67. Kf2 Qf3+ 68. Kg1 e3 69. Kh2 e2 70. g7 e1=Q 71. g5 Qfh1#) 53... Rg7 {[%emt 0:00:22]} 54. Rh6 {[%emt 0:00:35]} Rg6 {[%emt 0:00:36] Against Rf6+} 55. Rxh5 {[%emt 0:00:28]} ({Don't go for} 55. Kxh5 $2 Rxh6+ 56. Kxh6 Kg8 $19) 55... Kg7 {[%emt 0:00:08] Prevents Rh7+.} (55... b5 56. Kg4 b4) 56. Kh3 $2 {[%emt 0:00:36]} (56. Kg4 $18 {is the precise move to win.}) 56... b5 $16 {[%emt 0:00:16] [#]} 57. Kg2 $1 {[%emt 0:00:14]} e5 {[%emt 0:00:42] [#]} 58. Rh4 $1 {[%emt 0:00:14]} Rxg5 {[%emt 0:01:29]} (58... Rb6 $16 {is a better defense.}) 59. Rb4 $18 {[%emt 0:00:04]} e4 $2 {[%emt 0:00:00]} (59... Kf6 60. Rxb5 Rg7) 60. Rxe4 {[%emt 0:00:09]} Rc5 {[%emt 0:00:00]} 61. h4 $2 {[%emt 0:00:27]} (61. Rb4 $18 Rc2+ 62. Kh3) 61... Rc2+ $2 {[%emt 0:00:16]} (61... Rc7 $16 62. Rb4 Rb7) 62. Kh3 {[%emt 0:00:10]} Rc4 {[%emt 0:01:02]} 63. Re6 {[%emt 0:00:47] Hoping for h5.} b4 {[%emt 0:00:19]} 64. Rb6 {[%emt 0:00:05]} Rd4 {[%emt 0:00:26]} 65. h5 {[%emt 0:00:12][%cal Bh4h5,Bh5h6][%mdl 32] Strongly threatening g4.} Rc4 {[%emt 0:00:41]} 66. g4 {[%emt 0:00:08][%cal Bg3g4,Bg4g5][%mdl 32]} Rd4 {[%emt 0:00:38]} 67. Kh4 {[%emt 0:00:15]} (67. g5 $142 Rd3+ 68. Kg4 Rd4+ 69. Kf5 Rd5+ 70. Kf4 Rd4+ 71. Ke5) 67... Rc4 {[%emt 0:00:35]} 68. h6+ {[%emt 0:00:09] White mates.} Kh7 {[%emt 0:00:31]} 69. Kh5 {[%emt 0:00:05]} Rc1 {[%emt 0:00:24]} 70. Rb7+ {[%emt 0:00:04]} Kh8 {[%emt 0:00:22]} 71. g5 {[%emt 0:00:17]} Rc5 {[%emt 0:00:40]} 72. h7 {[%emt 0:01:11]} Rc1 {[%emt 0:00:35]} 73. Kh6 {[%emt 0:00:13] Weighted Error Value: White=0.20 (precise) /Black=0.20 (precise)} 1-0

[Event "3rd VIZAG GM-Open 2022"]
[Site "Visakapatnam"]
[Date "2022.06.14"]
[Round "7.17"]
[White "Baghdasaryan, Vahe"]
[Black "Harshit Ranjan Sahu"]
[Result "1-0"]
[ECO "B72"]
[WhiteElo "2267"]
[BlackElo "1645"]
[Annotator "NA RC"]
[PlyCount "91"]
[EventDate "2022.06.13"]
[EventType "swiss"]
[EventCountry "IND"]
[SourceTitle "playchess.com"]
[Source "ChessBase"]
[SourceQuality "1"]
[TimeControl "5400+30"]

1. e4 {[%emt 0:13:27]} c5 {[%emt 0:00:11]} 2. Nf3 {[%emt 0:00:06]} d6 {[%emt 0:00:20]} 3. d4 {[%emt 0:00:06]} cxd4 {[%emt 0:00:06]} 4. Nxd4 {[%emt 0:00:02]} Nf6 {[%emt 0:00:16]} 5. Nc3 {[%emt 0:00:04]} g6 {[%emt 0:00:12]} 6. Be3 {[%emt 0:00:50]} Bg7 {[%emt 0:00:03]} 7. h3 {[%emt 0:03:34]} O-O {[%emt 0:00:43]} 8. Bc4 {[%emt 0:00:31]} Nc6 {[%emt 0:00:20]} 9. Bb3 {[%emt 0:00:11]} Bd7 {[%emt 0:00:12]} 10. O-O {[%emt 0:00:05]} Rc8 {[%emt 0:01:28]} 11. Re1 {[%emt 0:06:19]} a6 {[%emt 0:01:16]} 12. Nf3 {[%emt 0:01:12]} b5 {[%emt 0:04:52]} 13. Nd5 {[%emt 0:04:19]} Nxd5 {[%emt 0:12:04]} 14. exd5 {[%emt 0:04:38]} Na5 {[%emt 0:01:04]} 15. Bd4 {[%emt 0:00:20]} Bxd4 {[%emt 0:07:18]} 16. Qxd4 {[%emt 0:01:22]} f6 {[%emt 0:12:10]} 17. c3 {[%emt 0:01:40]} Rf7 {[%emt 0:01:28]} 18. Re2 {[%emt 0:01:17]} g5 $16 {[%emt 0:07:15]} (18... Nc4 $14) 19. Rae1 {[%emt 0:01:39]} Rg7 {[%emt 0:01:57]} 20. Nd2 {[%emt 0:01:48]} Bf5 {[%emt 0:08:21]} 21. Nf1 {[%emt 0:02:18]} Qc7 {[%emt 0:07:48]} 22. Ng3 {[%emt 0:02:29]} Bg6 {[%emt 0:01:05]} 23. Qg4 {[%emt 0:00:38]} Rf8 {[%emt 0:02:52]} 24. Re6 {[%emt 0:14:44]} f5 {[%emt 0:11:50]} 25. Qxg5 {[%emt 0:04:53]} f4 {[%emt 0:01:06]} 26. Nh5 {[%emt 0:07:17]} Rf5 {[%emt 0:02:00]} 27. Qxf5 {[%emt 0:00:11]} Bxf5 {[%emt 0:00:03]} 28. Nxg7 {[%emt 0:00:04]} Bxe6 {[%emt 0:00:07]} 29. Nxe6 {[%emt 0:00:02]} Qb7 {[%emt 0:01:51]} 30. Nxf4 {[%emt 0:00:21]} Nxb3 {[%emt 0:00:19]} 31. axb3 {[%emt 0:00:02]} a5 {[%emt 0:00:35]} 32. Re3 {[%emt 0:02:15]} a4 {[%emt 0:01:09]} 33. b4 {[%emt 0:01:10]} Qc7 {[%emt 0:04:14]} 34. g3 {[%emt 0:05:52]} Qc4 {[%emt 0:01:04]} 35. Rxe7 {[%emt 0:00:11]} Qb3 {[%emt 0:01:16]} 36. Re2 {[%emt 0:04:06]} Kf7 {[%emt 0:01:13]} 37. Kg2 {[%emt 0:00:08]} Kf6 {[%emt 0:02:01]} 38. h4 {[%emt 0:00:23]} Kf7 {[%emt 0:01:18]} 39. g4 {[%emt 0:04:06]} Kf6 {[%emt 0:02:17]} 40. Kg3 {[%emt 0:05:39]} Qd1 {[%emt 0:01:38]} 41. g5+ {[%emt 0:00:48]} Kf5 {[%emt 0:00:53]} 42. f3 {[%emt 0:00:33]} Qb1 {[%emt 0:01:07]} 43. Re6 {[%emt 0:01:13]} Qd1 {[%emt 0:01:30]} 44. Ng2 {[%emt 0:03:03]} Qg1 {[%emt 0:00:48]} 45. f4 {[%emt 0:00:48]} h5 {[%emt 0:00:41]} 46. gxh6 {[%emt 0:01:52]} 1-0

[Event "3rd VIZAG GM-Open 2022"]
[Site "Visakapatnam"]
[Date "2022.06.14"]
[Round "7.18"]
[White "Pawar, Harshit"]
[Black "Jubin Jimmy"]
[Result "0-1"]
[ECO "B15"]
[WhiteElo "1961"]
[BlackElo "2259"]
[Annotator "NA RC"]
[PlyCount "108"]
[EventDate "2022.06.13"]
[EventType "swiss"]
[EventCountry "IND"]
[SourceTitle "playchess.com"]
[Source "ChessBase"]
[SourceQuality "1"]
[TimeControl "5400+30"]

1. e4 {[%emt 0:00:08]} c6 {[%emt 0:00:14]} 2. Nc3 {[%emt 0:00:20]} d5 {[%emt 0:00:10]} 3. Nf3 {[%emt 0:00:11]} g6 {[%emt 0:00:14]} 4. d4 {[%emt 0:00:39]} Bg7 {[%emt 0:00:07]} 5. Be3 {[%emt 0:00:25]} dxe4 {[%emt 0:01:04]} 6. Nxe4 {[%emt 0:00:09]} Nf6 {[%emt 0:00:10]} 7. Nxf6+ {[%emt 0:01:35]} exf6 {[%emt 0:00:42]} 8. Bc4 {[%emt 0:02:30]} O-O {[%emt 0:01:52]} 9. Qd2 {[%emt 0:01:11]} Nd7 {[%emt 0:00:56]} 10. O-O {[%emt 0:03:03]} Nb6 {[%emt 0:01:19]} 11. Bb3 {[%emt 0:01:55]} Bg4 {[%emt 0:02:04]} 12. Ne1 {[%emt 0:00:48]} Nd5 {[%emt 0:03:12]} 13. Bxd5 {[%emt 0:10:36]} Qxd5 {[%emt 0:00:14]} 14. Nd3 {[%emt 0:00:34]} Rfe8 {[%emt 0:02:50]} 15. Rfe1 {[%emt 0:01:41]} Bf5 {[%emt 0:02:02]} 16. b3 {[%emt 0:04:55]} Rad8 {[%emt 0:04:29]} 17. Nc5 {[%emt 0:01:14]} Bc8 $11 {[%emt 0:05:52]} 18. c3 {[%emt 0:06:23]} g5 {[%emt 0:09:41]} 19. f3 {[%emt 0:05:45]} h6 {[%emt 0:03:37]} 20. Bf2 {[%emt 0:02:04]} b6 {[%emt 0:10:42]} 21. Rxe8+ {[%emt 0:09:21]} Rxe8 {[%emt 0:00:07]} 22. Re1 {[%emt 0:00:05]} Rd8 {[%emt 0:05:47]} 23. Nd3 {[%emt 0:05:30]} Be6 {[%emt 0:01:11]} 24. Qe2 {[%emt 0:04:51]} Bf8 {[%emt 0:03:32]} 25. Nb4 {[%emt 0:16:07]} Qd7 {[%emt 0:07:40]} 26. Nc2 {[%emt 0:01:04]} Bf5 {[%emt 0:03:42]} 27. Ne3 {[%emt 0:01:11]} Re8 {[%emt 0:00:16]} 28. Qd2 {[%emt 0:00:26]} Be6 {[%emt 0:02:17]} 29. Qd3 {[%emt 0:02:13]} Rd8 {[%emt 0:02:16]} 30. Rd1 {[%emt 0:00:32]} f5 {[%emt 0:00:54]} 31. h4 {[%emt 0:02:07]} f4 {[%emt 0:01:24]} 32. Nc4 {[%emt 0:00:15]} f6 {[%emt 0:01:38]} 33. Re1 {[%emt 0:00:41]} Bf5 {[%emt 0:00:14]} 34. Qe2 {[%emt 0:00:41]} Kf7 {[%emt 0:02:05]} 35. Nd2 {[%emt 0:01:00]} Re8 {[%emt 0:01:57]} 36. Ne4 {[%emt 0:01:04]} g4 {[%emt 0:03:08]} 37. g3 {[%emt 0:02:51]} h5 {[%emt 0:07:59]} 38. Kh2 {[%emt 0:03:52]} Kg6 {[%emt 0:01:29]} 39. Qd1 {[%emt 0:02:30]} Bh6 {[%emt 0:02:07]} 40. Nd2 {[%emt 0:01:08]} gxf3 {[%emt 0:02:19]} 41. Qxf3 {[%emt 0:01:26]} Bg4 {[%emt 0:07:27]} 42. Qd3+ {[%emt 0:00:13]} Bf5 {[%emt 0:00:00]} 43. Qf3 {[%emt 0:00:16]} Bg4 {[%emt 0:00:00]} 44. Qd3+ {[%emt 0:00:07]} Bf5 {[%emt 0:00:00]} 45. Qf3 {[%emt 0:00:02]} fxg3+ {[%emt 0:00:00]} 46. Qxg3+ {[%emt 0:00:23]} Kf7 {[%emt 0:00:00]} 47. Rxe8 {[%emt 0:03:37]} Qxe8 {[%emt 0:00:00]} 48. Nc4 {[%emt 0:00:02]} Qe2 {[%emt 0:00:00]} 49. Nd6+ {[%emt 0:01:13]} Ke6 {[%emt 0:00:00]} 50. Nxf5 {[%emt 0:01:40]} Kxf5 {[%emt 0:00:00]} 51. Qh3+ {[%emt 0:01:10]} Ke4 {[%emt 0:00:00]} 52. Qg2+ {[%emt 0:02:02]} Kd3 {[%emt 0:00:00]} 53. c4 {[%emt 0:00:37]} Bf4+ {[%emt 0:01:05]} 54. Kh3 {[%emt 0:00:29]} Qe6+ {[%emt 0:00:18]} 0-1